fUSD/lending_fUSD_20251110
["ID","MTS","AMOUNT","RATE_DAILY","PERIOD"]
[393541781,1762785043442,-717.57353449,0.0001891,2]
[393541782,1762785043453,-354.63906977,0.0001901,7]
[393541783,1762785043462,-420.0,0.00019628,2]
[393541784,1762785043472,-150.0,0.00023323,2]
[393541785,1762785043481,-250.0,0.00024612,2]
[393541786,1762785043490,-154.12,0.00025103,2]
[393541787,1762785043502,-5516.0,0.000252,3]
[393541788,1762785043510,-250.0,0.00025536,2]
[393541789,1762785043521,-250.0,0.00025655,2]
[393541790,1762785043530,-478.09862864,0.00025907,2]
[393541791,1762785043538,-5516.0,0.00026,5]
[393541792,1762785043547,-279.0,0.00026199,2]
[393541793,1762785043556,-1000.01,0.00027,2]
[393541794,1762785043565,-166.66,0.00027294,30]
[393541795,1762785043577,-1000.01,0.000275,2]
[393541796,1762785043586,-166.66,0.00027869,30]
[393541797,1762785043595,-3617.23,0.00028399,2]
[393541798,1762785043605,-166.66,0.00028444,30]
[393541799,1762785043616,-300.0,0.00028444,2]
[393541800,1762785043626,-150.99,0.00028836,2]
[393541801,1762785043635,-999.99,0.00028836,2]
[393541802,1762785043645,-9999.99,0.00028836,2]
[393541803,1762785043655,-165.05143023,0.00028918,2]
[393541804,1762785043664,-228.23987114,0.00029008,2]
[393541805,1762785043674,-500.0,0.00029008,2]
[393541806,1762785043684,-500.0,0.00029008,2]
[393541807,1762785043694,-500.0,0.00029008,2]
[393541808,1762785043704,-500.0,0.00029008,2]
[393541809,1762785043718,-500.0,0.00029008,2]
[393541810,1762785043728,-500.0,0.00029008,2]
[393541811,1762785043737,-500.0,0.00029008,2]
[393541812,1762785043749,-500.0,0.00029008,2]
[393541813,1762785043759,-500.0,0.00029008,2]
[393541814,1762785043769,-500.0,0.00029008,2]
[393541815,1762785043778,-500.0,0.00029008,2]
[393541816,1762785043788,-500.0,0.00029008,2]
[393541817,1762785043798,-500.0,0.00029008,2]
[393541818,1762785043807,-482.25089347,0.00029008,2]
[393541819,1762785043817,-500.0,0.00029008,2]
[393541820,1762785043827,-500.0,0.00029008,2]
[393541821,1762785043837,-57649.86,0.00029009,2]
[393541822,1762785043847,-166.66,0.00029018,30]
[393541823,1762785043857,-500.0,0.00029073,3]
[393541824,1762785043867,-7408.02,0.00029287,2]
[393541825,1762785043877,-166.66,0.00029593,30]
[393541826,1762785043886,-791.6,0.00029652,2]
[393541827,1762785043896,-200.0,0.00029831,2]
[393541828,1762785043906,-200.0,0.00029962,2]
[393541829,1762785043916,-190.5870731,0.00030082,2]
[393541830,1762785043926,-219.29,0.00030137,120]
[393541831,1762785043935,-166.66,0.00030168,30]
[393541832,1762785043945,-190.5870731,0.0003026,2]
[393541833,1762785043955,-190.5870731,0.00030424,2]
[393541834,1762785043965,-165.05143021,0.00030429,2]
[393541835,1762785043975,-865.86307767,0.00030566,2]
[393541836,1762785043984,-598.19071,0.0003081,2]
[393541837,1762785043996,-1110.9098,0.0003082,2]
[393541838,1762785044006,-477.51,0.00030822,2]
[393541839,1762785044016,-954.64,0.00030822,2]
[393541840,1762785044026,-476.88,0.00030822,2]
[393541841,1762785044035,-477.51,0.00030822,2]
[393541843,1762785044045,-11767.7181924,0.00030856,2]
[393541845,1762785044055,-3133.5172443,0.00030856,2]
[393541846,1762785044065,-3199.3353745,0.00030856,2]
[393541847,1762785044076,-154.607816,0.00030856,2]
[393541848,1762785044090,-865.86307768,0.00030891,2]
[393541849,1762785044100,-824.70796703,0.000309,15]
[393541850,1762785044110,-570.96798728,0.000309,3]
[393541851,1762785044121,-190.58707313,0.00030919,2]
[393541852,1762785044130,-200.0,0.00030969,2]
[393541853,1762785044141,-500.0,0.00030973,5]
[393541854,1762785044150,-500.0,0.00030973,5]
[393541855,1762785044160,-274.49171562,0.00030973,5]
[393541856,1762785044170,-505.01909969,0.00030973,5]
[393541857,1762785044181,-500.0,0.00030973,5]
[393541858,1762785044190,-500.0,0.00030973,5]
[393541859,1762785044200,-500.0,0.00030973,5]
[393541860,1762785044210,-500.0,0.00030973,5]
[393541861,1762785044221,-151.0,0.00030981,2]
[393541862,1762785044231,-151.0,0.00030981,2]
[393541863,1762785044241,-151.0,0.00030981,2]
[393541864,1762785044255,-151.0,0.00030981,2]
[393541865,1762785044265,-151.0,0.00030981,2]
[393541866,1762785044274,-151.0,0.00030981,2]
[393541867,1762785044291,-151.0,0.00030981,2]
[393541868,1762785044300,-151.0,0.00030981,2]
[393541869,1762785044309,-151.0,0.00030981,2]
[393541870,1762785044319,-151.0,0.00030981,2]
[393541871,1762785044329,-151.0,0.00030981,2]
[393541872,1762785044339,-151.0,0.00030981,2]
[393541873,1762785044348,-151.0,0.00030981,2]
[393541874,1762785044358,-151.0,0.00030981,2]
[393541875,1762785044368,-151.0,0.00030981,2]
[393541876,1762785044378,-151.0,0.00030981,2]
[393541877,1762785044388,-151.0,0.00030981,2]
[393541878,1762785044398,-151.0,0.00030981,2]
[393541879,1762785044409,-151.0,0.00030981,2]
[393541880,1762785044419,-151.0,0.00030987,7]
[393541881,1762785044429,-327.6106735,0.00030989,2]
[393541882,1762785044440,-209.2828048,0.00030989,2]
[393541883,1762785044450,-208.50505929,0.00030989,2]
[393541884,1762785044460,-150.0,0.00030989,14]
[393541885,1762785044470,-150.0,0.00030989,14]
[393541886,1762785044480,-150.0,0.00030989,14]
[393541887,1762785044490,-150.0,0.00030989,14]
[393541888,1762785044501,-215609.241305,0.0003099,3]
[393541889,1762785044511,-76190.1459739,0.0003099,3]
[393541890,1762785044521,-151.0,0.0003099,31]
[393541891,1762785044531,-151.0,0.0003099,31]
[393541892,1762785044542,-151.0,0.0003099,31]
[393541893,1762785044552,-151.0,0.0003099,31]
[393541894,1762785044563,-151.0,0.0003099,31]
[393541895,1762785044576,-151.0,0.0003099,31]
[393541896,1762785044586,-151.0,0.00030997,7]
[393541897,1762785044597,-254.62,0.00030999,14]
[393541898,1762785044606,-150.0,0.00030999,2]
[393541899,1762785044617,-151.59027207,0.00030999,2]
[393541900,1762785044627,-150.0,0.00030999,2]
[393541901,1762785044638,-150.0,0.00030999,2]
[393541902,1762785044649,-150.0,0.00030999,2]
[393541903,1762785044663,-500.0,0.00030999,2]
[393541904,1762785044673,-150.0,0.00030999,2]
[393541905,1762785044683,-200.0,0.00030999,2]
[393541906,1762785044694,-150.0,0.00030999,2]
[393541907,1762785044705,-150.0,0.00030999,2]
[393541908,1762785044715,-454985.20706749,0.00031,2]
[393541909,1762785044725,-164.0,0.00031,31]
[393541910,1762785044735,-164.0,0.00031,31]
[393541911,1762785044747,-151.0,0.00031,31]
[393541912,1762785044757,-151.0,0.00031,31]
[393541913,1762785044767,-151.0,0.00031,31]
[393541914,1762785044777,-151.0,0.00031,31]
[393541915,1762785044787,-151.0,0.00031,30]
[393541916,1762785044797,-151.0,0.00031,30]
[393541917,1762785044807,-241.57590383,0.00031099,2]
[393541918,1762785044817,-200.0,0.00031125,2]
[393541919,1762785044827,-200.0,0.00031125,2]
[393541920,1762785044837,-663.39288899,0.00031125,2]
[393541921,1762785044848,-151.0,0.00031125,2]
[393541922,1762785044862,-150.0,0.00031126,14]
[393541923,1762785044872,-150.0,0.00031126,14]
[393541924,1762785044882,-150.0,0.00031126,14]
[393541925,1762785044891,-1975.0,0.0003113,7]
[393541926,1762785044901,-150.0,0.00031136,2]
[393541927,1762785044911,-500.0,0.00031136,2]
[393541928,1762785044920,-150.0,0.00031136,2]
[393541929,1762785044930,-200.0,0.00031263,14]
[393541930,1762785044939,-267.78464449,0.00031263,14]
[393541931,1762785044949,-200.0,0.00031273,2]
[393541932,1762785044959,-628.38259742,0.00031273,2]
[393541933,1762785044969,-254.62,0.00031273,14]
[393541934,1762785044978,-200.0,0.00031436,2]
[393541935,1762785044988,-200.0,0.00031436,2]
[393541936,1762785044999,-150.0,0.00031436,2]
[393541937,1762785045008,-150.0,0.00031436,2]
[393541938,1762785045018,-150.0,0.00031436,2]
[393541939,1762785045027,-150.0,0.00031436,2]
[393541940,1762785045037,-322.0,0.00031486,2]
[393541941,1762785045047,-250.0,0.00031491,2]
[393541942,1762785045059,-1000.0,0.00031521,5]
[393541943,1762785045069,-500.0,0.00031521,5]
[393541944,1762785045078,-254.62,0.00031547,14]
[393541945,1762785045087,-150.0,0.00031573,2]
[393541946,1762785045097,-150.0,0.00031573,2]
[393541947,1762785045107,-150.0,0.00031573,2]
[393541948,1762785045116,-1000.0,0.00031626,2]
[393541949,1762785045126,-200.0,0.0003171,2]
[393541950,1762785045136,-200.0,0.0003171,2]
[393541951,1762785045146,-200.0,0.0003171,2]
[393541952,1762785045155,-157.32,0.00031714,2]
[393541953,1762785045165,-170.96,0.00031715,15]
[393541954,1762785045174,-200.0,0.00031751,2]
[393541955,1762785045185,-200.0,0.00031751,2]
[393541956,1762785045194,-13475.5775816,0.00031771,3]
[393541957,1762785045204,-19047.5364935,0.00031771,3]
[393541958,1762785045213,-477.51,0.00031781,2]
[393541959,1762785045223,-477.51,0.00031781,2]
[393541960,1762785045232,-477.51,0.00031781,2]
[393541961,1762785045243,-477.51,0.00031781,2]
[393541962,1762785045255,-476.91,0.00031781,2]
[393541963,1762785045265,-1397.9,0.00031781,2]
[393541964,1762785045274,-598.19072,0.0003181,2]
[393541965,1762785045284,-254.62,0.00031821,14]
[393541966,1762785045294,-168.34,0.00031833,2]
[393541967,1762785045304,-570.96798726,0.00031834,4]
[393541968,1762785045314,-824.70796695,0.00031855,15]
[393541969,1762785045324,-150.15,0.00031915,2]
[393541970,1762785045334,-392.48735626,0.00031915,2]
[393541971,1762785045343,-13475.5775816,0.00031925,3]
[393541972,1762785045353,-19047.5364935,0.00031925,3]
[393541973,1762785045363,-165.05143021,0.00031941,2]
[393541974,1762785045372,-200.0,0.00031973,5]
[393541975,1762785045382,-500.90177288,0.00031973,5]
[393541976,1762785045392,-500.66231134,0.00031973,5]
[393541977,1762785045401,-169.14,0.00032055,2]
[393541978,1762785045411,-549.43,0.00032055,2]
[393541979,1762785045420,-290.08,0.00032055,2]
[393541980,1762785045430,-150.0,0.00032055,2]
[393541981,1762785045440,-150.0,0.00032055,2]
[393541982,1762785045450,-1665.17,0.00032055,2]
[393541983,1762785045459,-150.0,0.00032055,2]
[393541984,1762785045469,-251.66,0.00032055,2]
[393541985,1762785045479,-1206.51,0.00032055,2]
[393541986,1762785045488,-150.0,0.00032055,2]
[393541987,1762785045499,-150.0,0.00032055,2]
[393541988,1762785045509,-200.0,0.00032068,2]
[393541989,1762785045519,-610.65482864,0.00032068,5]
[393541990,1762785045530,-1016.0,0.00032071,2]
[393541991,1762785045540,-296.92453983,0.00032081,2]
[393541992,1762785045549,-150.0,0.00032081,2]
[393541993,1762785045692,-150.0,0.00032081,2]
[393541994,1762785045703,-500.0,0.00032081,2]
[393541995,1762785045713,-150.0,0.00032081,2]
[393541996,1762785045722,-150.0,0.00032081,2]
[393541997,1762785045732,-150.0,0.00032081,2]
[393541998,1762785045742,-150.0,0.00032081,2]
[393541999,1762785045753,-150.0,0.00032081,2]
[393542000,1762785045763,-150.0,0.00032081,2]
[393542001,1762785045772,-500.0,0.00032081,2]
[393542002,1762785045782,-500.0,0.00032081,2]
[393542003,1762785045792,-254.63,0.00032095,14]
[393542004,1762785045801,-1500.0,0.000321,2]
[393542006,1762785045810,-1500.0,0.000321,2]
[393542008,1762785045819,-207.05,0.00032113,2]
[393542009,1762785045828,-13475.5775816,0.0003218,3]
[393542011,1762785045837,-1016.0,0.00032189,7]
[393542012,1762785045846,-2000.0,0.000322,2]
[393542013,1762785045856,-150.15,0.00032208,2]
[393542014,1762785045866,-1016.0,0.00032217,2]
[393542015,1762785045876,-202.19828309,0.00032218,2]
[393542016,1762785045886,-500.0,0.00032218,2]
[393542017,1762785045895,-204.97586592,0.00032218,2]
[393542018,1762785045905,-150.0,0.00032218,2]
[393542019,1762785045914,-153.00042729,0.00032218,2]
[393542020,1762785045924,-500.0,0.00032218,2]
[393542021,1762785045934,-552.12770534,0.00032218,2]
[393542022,1762785045944,-3234.0,0.0003227,7]
[393542023,1762785045954,-1016.0,0.00032291,2]
[393542024,1762785045963,-500.0,0.00032355,2]
[393542025,1762785045972,-200.0,0.00032355,2]
[393542026,1762785045981,-407.13508711,0.00032355,2]
[393542027,1762785045990,-200.0,0.00032389,2]
[393542028,1762785046001,-168.0,0.00032391,2]
[393542029,1762785046010,-1016.0,0.00032405,7]
[393542030,1762785046020,-19047.5364935,0.0003241,3]
[393542031,1762785046029,-151.0,0.0003241,31]
[393542032,1762785046038,-151.0,0.0003241,31]
[393542033,1762785046048,-151.0,0.0003241,31]
[393542034,1762785046058,-151.0,0.0003241,31]
[393542035,1762785046068,-151.0,0.0003241,30]
[393542036,1762785046078,-163.260451,0.0003241,30]
[393542037,1762785046088,-1380.205,0.0003242,32]
[393542038,1762785046099,-1016.0,0.00032467,2]
[393542040,1762785046109,-500.0,0.00032492,2]
[393542041,1762785046118,-151.0,0.00032553,31]
[393542042,1762785046127,-151.0,0.00032553,31]
[393542043,1762785046137,-151.0,0.00032553,31]
[393542044,1762785046147,-151.0,0.00032553,31]
[393542045,1762785046157,-151.0,0.00032553,31]
[393542046,1762785046167,-246.526567,0.00032553,31]
[393542048,1762785046177,-157.32,0.00032553,2]
[393542050,1762785046187,-13475.5775816,0.00032619,3]
[393542052,1762785046197,-2071.68,0.00032625,2]
[393542054,1762785046206,-500.0,0.00032629,2]
[393542056,1762785046216,-152.675179,0.00032644,31]
[393542059,1762785046226,-400.0,0.00032658,5]
[393542061,1762785046236,-500.0,0.00032766,2]
[393542063,1762785046247,-570.96798726,0.00032767,6]
[393542065,1762785046256,-1000.0,0.00032769,2]
[393542067,1762785046265,-168.0,0.00032788,2]
[393542069,1762785046275,-598.19071,0.0003281,2]
[393542071,1762785046284,-824.70796695,0.00032811,15]
[393542073,1762785046294,-150.15,0.00032857,2]
[393542075,1762785046303,-13475.5775816,0.00032867,3]
[393542077,1762785046313,-19047.5364935,0.00032867,3]
[393542079,1762785046322,-13475.5775816,0.00032871,3]
[393542081,1762785046331,-19047.5364935,0.00032871,3]
[393542082,1762785046340,-150.15,0.00032871,2]
[393542083,1762785046350,-2162.0,0.00032871,5]
[393542084,1762785046359,-501.04587818,0.00032873,5]
[393542085,1762785046369,-565.55842441,0.00032873,5]
[393542086,1762785046378,-500.0,0.00032873,5]
[393542087,1762785046387,-500.79263561,0.00032873,5]
[393542088,1762785046397,-1003.8604,0.00032876,2]
[393542089,1762785046406,-151.0,0.00032877,31]
[393542090,1762785046415,-151.0,0.00032877,31]
[393542091,1762785046424,-151.0,0.00032877,31]
[393542092,1762785046434,-538.29,0.00032877,30]
[393542093,1762785046443,-268.49,0.00032877,2]
[393542094,1762785046452,-150.0,0.00032877,2]
[393542095,1762785046461,-150.0,0.00032877,2]
[393542096,1762785046470,-151.0,0.00032881,31]
[393542097,1762785046479,-151.0,0.00032881,31]
[393542098,1762785046489,-151.0,0.00032881,31]
[393542099,1762785046500,-156.291755,0.00032881,31]
[393542100,1762785046509,-153.279242,0.00032881,31]
[393542101,1762785046519,-151.0,0.00032881,31]
[393542102,1762785046528,-156.542144,0.00032881,31]
[393542103,1762785046538,-151.0,0.00032881,31]
[393542104,1762785046547,-151.0,0.00032881,31]
[393542105,1762785046556,-151.0,0.00032881,31]
[393542106,1762785046567,-151.0,0.00032881,31]
[393542107,1762785046578,-151.0,0.00032881,31]
[393542108,1762785046587,-151.0,0.00032881,31]
[393542109,1762785046596,-151.0,0.00032881,31]
[393542110,1762785046606,-151.0,0.00032881,31]
[393542111,1762785046615,-151.0,0.00032881,31]
[393542112,1762785046624,-151.0,0.00032881,31]
[393542113,1762785046634,-259.906988,0.00032881,31]
[393542114,1762785046644,-169.894068,0.00032881,31]
[393542115,1762785046654,-151.0,0.00032881,31]
[393542116,1762785046663,-180.682619,0.00032881,31]
[393542117,1762785046672,-151.0,0.00032881,31]
[393542118,1762785046681,-151.0,0.00032881,31]
[393542119,1762785046690,-151.0,0.00032881,31]
[393542120,1762785046700,-151.0,0.00032881,31]
[393542121,1762785046709,-289.547375,0.00032881,31]
[393542122,1762785046719,-151.0,0.00032881,31]
[393542123,1762785046728,-151.0,0.00032881,15]
[393542124,1762785046737,-151.0,0.00032881,31]
[393542126,1762785046748,-156.382887,0.00032881,31]
[393542128,1762785046757,-151.000008,0.00032881,31]
[393542129,1762785046767,-286.09297,0.00032881,31]
[393542131,1762785046778,-286.09297,0.00032881,31]
[393542133,1762785046791,-286.09297,0.00032881,31]
[393542136,1762785046807,-286.09297,0.00032881,31]
[393542138,1762785046820,-500.0,0.00032903,2]
[393542140,1762785046832,-168.0,0.00032953,2]
[393542142,1762785046845,-150.0,0.0003296,2]
[393542144,1762785046859,-150.0,0.0003296,2]
[393542146,1762785046873,-150.0,0.0003296,2]
[393542148,1762785046887,-150.0,0.0003296,2]
[393542150,1762785046900,-158.23579421,0.0003296,2]
[393542152,1762785046912,-253.03671545,0.0003296,2]
[393542154,1762785046924,-150.0,0.0003296,2]
[393542157,1762785046936,-150.0,0.0003296,2]
[393542159,1762785046950,-150.0,0.0003296,2]
[393542161,1762785046963,-150.0,0.0003296,2]
[393542163,1762785046977,-150.0,0.0003296,2]
[393542165,1762785046989,-150.0,0.0003296,2]
[393542167,1762785047004,-150.0,0.0003296,2]
[393542168,1762785047017,-150.0,0.0003296,2]
[393542169,1762785047029,-150.0,0.0003296,2]
[393542170,1762785047044,-243.205616,0.00032962,31]
[393542171,1762785047057,-151.0,0.00032962,31]
[393542172,1762785047069,-151.0,0.00032962,31]
[393542173,1762785047083,-212.393808,0.00032962,31]
[393542174,1762785047094,-13475.5775816,0.00032963,3]
[393542175,1762785047107,-151.0,0.00032971,14]
[393542176,1762785047121,-500.0,0.00032973,5]
[393542177,1762785047133,-500.0,0.00032973,5]
[393542178,1762785047145,-500.0,0.00032973,5]
[393542179,1762785047158,-162.27203613,0.00032973,5]
[393542180,1762785047168,-13475.5775816,0.00032974,3]
[393542181,1762785047180,-19047.5364935,0.00032974,3]
[393542182,1762785047196,-150.15,0.00032974,2]
[393542183,1762785047209,-151.0,0.00032974,30]
[393542184,1762785047220,-11263.14013854,0.00032984,3]
[393542185,1762785047597,-81.0901,0.00031263,14]
[393542186,1762785048075,-151.0,0.00031125,2]
[393542187,1762785048085,-442.26192599,0.00031136,2]
[393542188,1762785048095,-79.11815854,0.00031263,14]
[393542189,1762785048105,-442.26192599,0.00031491,2]
[393542190,1762785048115,-151.0,0.0003171,2]
[393542191,1762785048124,-1206.51,0.00032055,2]
[393542192,1762785048134,-150.0,0.00032055,2]
[393542193,1762785048144,-1398.16873712,0.00032984,3]
[393542194,1762785048157,-800.0,0.00032984,3]
[393542195,1762785048168,-535.266,0.00032984,3]
[393542198,1762785122011,300.0,0.00017988,2]
[393542199,1762785125588,-268.89354039,0.00017989,2]
[393542200,1762785127660,-231.10645961,0.00017989,2]
[393542201,1762785127689,-29.22453028,0.00017989,2]
[393542202,1762785131334,-158.29684727,0.00017989,2]
[393542203,1762785134058,-199.39538839,0.00017989,2]
[393542204,1762785134087,-60.69117143,0.00017989,2]
[393542205,1762785136868,-250.0,0.00017989,2]
[393542206,1762785139471,-189.30882857,0.00017989,2]
[393542207,1762785139496,-134.80758556,0.00017989,2]
[393542208,1762785142698,-243.99171135,0.00017989,2]
[393542209,1762785142726,-6.00828865,0.00017989,2]
[393542210,1762785144206,-392.27553776,0.00017989,2]
[393542211,1762785146503,-37.7628149,0.00017989,2]
[393542212,1762785146530,-118.49209473,0.00017989,2]
[393542213,1762785148291,-381.50790527,0.00017989,2]
[393542214,1762785148317,-115.4903689,0.00017989,2]
[393542215,1762785151416,-164.46490794,0.00017989,2]
[393542216,1762785153847,-178.8903808,0.00017989,2]
[393542217,1762785156249,-41.15434236,0.00017989,2]
[393542218,1762785156278,-186.38308408,0.00017989,2]
[393542219,1762785162799,1200.0,0.00017988,2]
[393542220,1762785164096,-170.88129443,0.00017989,2]
[393542221,1762785168570,-142.73562149,0.00017989,2]
[393542222,1762785168595,-185.08854538,0.00017989,2]
[393542223,1762785170116,-261.06862099,0.00017989,2]
[393542224,1762785172610,-53.84283363,0.00017989,2]
[393542225,1762785172634,-139.93193633,0.00017989,2]
[393542236,1762785559210,184.86935199,0.000179,2]
[393542239,1762785607499,277.2,0.00013699,2]
[393542244,1762785638723,355.59,0.00015493,2]
[393542245,1762785638931,355.59,0.00016277,2]
[393542246,1762785639240,355.59,0.0001706,2]
[393542247,1762785639457,355.59,0.00017844,2]
[393542263,1762785864076,250.0,0.00017,2]
[393542294,1762786028401,151.0,0.00017989,2]
[393542295,1762786029054,151.0,0.00017989,2]
[393542297,1762786035633,151.0,0.00017989,2]
[393542298,1762786036259,151.0,0.00017989,2]
[393542299,1762786036959,151.0,0.00017989,2]
[393542300,1762786037056,200.0,0.00017989,2]
[393542301,1762786037588,151.0,0.00017989,2]
[393542303,1762786038208,151.0,0.00017989,2]
[393542304,1762786038848,151.0,0.00017989,2]
[393542305,1762786039485,151.0,0.00017989,2]
[393542306,1762786040127,151.0,0.00017989,2]
[393542308,1762786040978,151.0,0.00017989,2]
[393542309,1762786041606,151.0,0.00017989,2]
[393542310,1762786042213,151.0,0.00017989,2]
[393542311,1762786042886,151.0,0.00017989,2]
[393542312,1762786043578,151.0,0.00017989,2]
[393542314,1762786044219,151.0,0.00017989,2]
[393542315,1762786045219,151.0,0.00017989,2]
[393542316,1762786045471,235.23310324,0.00017989,2]
[393542317,1762786090614,522.0,0.00017,10]
[393542395,1762786232393,-3893.99675949,0.00018,2]
[393542398,1762786232405,-1118.98,0.00018,2]
[393542421,1762786232567,-612.38037711,0.00018,2]
[393542423,1762786232577,-250.0,0.00018313,2]
[393542425,1762786232586,-128.89383724,0.00018627,2]
[393542431,1762786232630,-226.69616276,0.00018627,2]
[393542433,1762786232639,-250.0,0.00018967,2]
[393542435,1762786232649,-300.0,0.00019,2]
[393542437,1762786232658,-355.59,0.0001941,2]
[393542439,1762786232668,-1200.0,0.00019798,2]
[393542441,1762786232677,-329.23770299,0.000198,2]
[393542443,1762786232686,-250.0,0.000198,2]
[393542445,1762786232695,-300.0,0.00020085,2]
[393542447,1762786232704,-300.0,0.00020085,2]
[393542449,1762786232714,-1860.746659,0.00020086,2]
[393542451,1762786232723,-277.2,0.00020187,2]
[393542453,1762786232732,-355.59,0.00020194,2]
[393542455,1762786232742,-355.59,0.00020977,2]
[393542458,1762786232752,-350.0,0.00021,2]
[393542461,1762786232761,-355.90873648,0.000215,2]
[393542464,1762786232771,-400.0,0.00021666,2]
[393542466,1762786232780,-355.59,0.00021761,2]
[393542468,1762786232790,-420.0,0.00021868,2]
[393542470,1762786232803,-355.59,0.00022544,2]
[393542472,1762786232812,-355.59,0.00023328,2]
[393542474,1762786232821,-587.0,0.0002381,2]
[393542476,1762786232831,-355.59,0.00024111,2]
[393542478,1762786232840,-355.59,0.00024895,2]
[393542481,1762786232850,-355.59,0.00025678,2]
[393542482,1762786232860,-2241.46106201,0.00025684,2]
[393542484,1762786232870,-823.0,0.00025924,2]
[393542487,1762786232883,-355.59,0.00026462,2]
[393542489,1762786232892,-638.0,0.00026462,2]
[393542491,1762786232901,-277.2,0.00026676,2]
[393542493,1762786232911,-171.0,0.00027,7]
[393542495,1762786232924,-355.59,0.00027245,2]
[393542497,1762786232933,-2000.0,0.000277,2]
[393542499,1762786232943,-5000.0,0.00028018,2]
[393542501,1762786232952,-4262.29,0.00028024,2]
[393542504,1762786232962,-355.59,0.00028028,2]
[393542507,1762786232972,-1152.0,0.00028226,2]
[393542509,1762786232981,-172.0,0.00028767,14]
[393542511,1762786232991,-600.0,0.0002877,80]
[393542513,1762786233004,-355.59,0.00028812,2]
[393542515,1762786233014,-1000.0,0.00028915,2]
[393542517,1762786233024,-585.0,0.00028915,2]
[393542519,1762786233033,-5798.77,0.00029009,2]
[393542521,1762786233043,-1000.0,0.00029092,2]
[393542523,1762786233053,-500.0,0.00029479,2]
[393542525,1762786233063,-355.59,0.00029595,2]
[393542527,1762786233072,-1000.0,0.00029999,2]
[393542529,1762786233082,-355.59,0.00030379,2]
[393542531,1762786233092,-2751.0,0.00030503,120]
[393542533,1762786233101,-1613.0,0.00030733,2]
[393542535,1762786233111,-1000.0,0.00030779,2]
[393542537,1762786233121,-194.57,0.00030813,120]
[393542539,1762786233132,-500.0,0.00030889,2]
[393542541,1762786233142,-500.0,0.00030989,2]
[393542543,1762786233151,-500.0,0.00030989,7]
[393542546,1762786233161,-500.0,0.00030989,120]
[393542548,1762786233170,-500.0,0.00030989,30]
[393542550,1762786233180,-500.0,0.00030999,2]
[393542552,1762786233189,-256.0,0.00031,7]
[393542554,1762786233199,-1000.0,0.00031083,2]
[393542555,1762786233209,-207.31242024,0.00031086,2]
[393542557,1762786233219,-1080.78,0.00031182,30]
[393542559,1762786233230,-2000.0,0.000314,2]
[393542562,1762786233239,-210.0,0.00031411,7]
[393542581,1762786233438,-210.0,0.00031537,7]
[393542583,1762786233450,-168.0,0.00031629,2]
[393542585,1762786233460,-210.0,0.00031663,7]
[393542587,1762786233471,-167.67,0.00031666,2]
[393542589,1762786233481,-210.0,0.00031788,7]
[393542591,1762786233492,-341.98754473,0.000318,120]
[393542593,1762786233502,-595.0,0.00031877,2]
[393542595,1762786233511,-222.20097351,0.00031914,7]